[Event "CZE-ch U16 Girls 2020"]
[Site "Kouty nad Desnou"]
[Date "2020.03.07"]
[Round "1.1"]
[White "Dvorakova, Olga"]
[Black "Maresova, Michaela"]
[Result "1-0"]
[ECO "D36"]
[WhiteElo "1793"]
[BlackElo "1422"]
[Annotator "NA RC"]
[PlyCount "67"]
[EventDate "2020.03.07"]
[EventCountry "CZE"]
[SourceTitle "playchess.com"]
[Source "ChessBase"]
[SourceQuality "1"]
[TimeControl "5400+30"]

1. d4 {[%emt 0:00:00]} d5 {[%emt 0:00:00]} 2. c4 {[%emt 0:00:00]} e6 {[%emt 0:00:00]} 3. Nc3 {[%emt 0:00:01]} Nf6 {[%emt 0:00:15]} 4. cxd5 {[%emt 0:00:17]} exd5 {[%emt 0:00:17]} 5. Bg5 {[%emt 0:00:20]} Be7 {[%emt 0:00:36]} 6. e3 {[%emt 0:00:38]} c6 {[%emt 0:00:25]} 7. Bd3 {[%emt 0:01:00]} Nbd7 {[%emt 0:01:17]} 8. Nf3 {[%emt 0:00:49]} O-O {[%emt 0:02:06]} 9. O-O {[%emt 0:00:51]} Re8 {[%emt 0:02:27]} 10. Qc2 {[%emt 0:00:55]} Nf8 {[%emt 0:02:06]} 11. h3 {[%emt 0:00:27]} g6 {[%emt 0:04:28]} 12. Rab1 {[%emt 0:03:10]} a5 {[%emt 0:05:02]} 13. a3 {[%emt 0:02:43]} Ne6 {[%emt 0:07:16]} 14. Bh4 {[%emt 0:05:27]} Ng7 {[%emt 0:17:21]} 15. b4 {[%emt 0:05:08]} axb4 {[%emt 0:06:55]} 16. axb4 {[%emt 0:00:08]} b5 {[%emt 0:06:31]} 17. Ne5 {[%emt 0:14:40]} Bb7 {[%emt 0:06:46]} 18. f4 {[%emt 0:06:35]} Nd7 {[%emt 0:09:02]} 19. Bxe7 {[%emt 0:07:04]} Rxe7 {[%emt 0:01:33]} 20. f5 {[%emt 0:07:00]} Re8 {[%emt 0:09:45]} 21. fxg6 {[%emt 0:17:15]} fxg6 {[%emt 0:04:17]} 22. Nf7 {[%emt 0:02:34]} Qe7 {[%emt 0:03:19]} 23. e4 {[%emt 0:03:04]} dxe4 {[%emt 0:02:38]} 24. Nxe4 {[%emt 0:00:31]} Nf5 {[%emt 0:00:45]} 25. Rxf5 {[%emt 0:07:53]} gxf5 {[%emt 0:01:20]} 26. Nh6+ {[%emt 0:01:36]} Kh8 {[%emt 0:01:15]} 27. Nxf5 {[%emt 0:00:30]} Qf8 {[%emt 0:01:06]} 28. Nfd6 {[%emt 0:03:08]} Reb8 {[%emt 0:01:09]} 29. Rf1 {[%emt 0:01:48]} Qg7 {[%emt 0:02:25]} 30. Qb2 {[%emt 0:03:24]} Qg6 {[%emt 0:01:56]} 31. Nf7+ {[%emt 0:01:19]} Kg7 {[%emt 0:00:34]} 32. d5+ {[%emt 0:00:22]} Nf6 {[%emt 0:00:30]} 33. Rxf6 {[%emt 0:00:44]} Qh5 {[%emt 0:00:33]} 34. Rf5+ {[%emt 0:00:34]} 1-0

[Event "CZE-ch U16 Girls 2020"]
[Site "Kouty nad Desnou"]
[Date "2020.03.07"]
[Round "1.2"]
[White "Ruzickova, Ema"]
[Black "Stastna, Martina"]
[Result "1/2-1/2"]
[ECO "C91"]
[WhiteElo "1409"]
[BlackElo "1700"]
[Annotator "NA RC"]
[PlyCount "128"]
[EventDate "2020.03.07"]
[EventCountry "CZE"]
[SourceTitle "playchess.com"]
[Source "ChessBase"]
[SourceQuality "1"]
[TimeControl "5400+30"]

1. e4 {[%emt 0:00:00]} e5 {[%emt 0:00:00]} 2. Nf3 {[%emt 0:00:00]} Nc6 {[%emt 0:00:00]} 3. Bb5 {[%emt 0:00:00]} a6 {[%emt 0:00:26]} 4. Ba4 {[%emt 0:00:00]} Nf6 {[%emt 0:00:53]} 5. O-O {[%emt 0:00:26]} b5 {[%emt 0:00:43]} 6. Bb3 {[%emt 0:01:57]} Be7 {[%emt 0:02:01]} 7. Re1 {[%emt 0:02:44]} d6 {[%emt 0:01:55]} 8. c3 {[%emt 0:01:56]} O-O {[%emt 0:02:00]} 9. d4 {[%emt 0:02:01]} Bg4 {[%emt 0:08:26]} 10. a4 {[%emt 0:04:49]} Re8 {[%emt 0:05:39]} 11. Kh1 {[%emt 0:15:34]} Bf8 {[%emt 0:05:43]} 12. Bc2 {[%emt 0:09:04]} Ne7 {[%emt 0:09:24]} 13. Bg5 {[%emt 0:13:02]} Ng6 {[%emt 0:09:48]} 14. Nbd2 {[%emt 0:04:09]} h6 {[%emt 0:03:04]} 15. Bxf6 {[%emt 0:05:30]} Qxf6 {[%emt 0:01:57]} 16. h3 {[%emt 0:02:17]} Bxf3 {[%emt 0:04:44]} 17. Nxf3 {[%emt 0:01:59]} Nf4 {[%emt 0:05:30]} 18. Kh2 {[%emt 0:05:37]} g5 {[%emt 0:07:12]} 19. g4 {[%emt 0:06:19]} Bg7 {[%emt 0:04:19]} 20. d5 {[%emt 0:03:31]} Reb8 {[%emt 0:09:21]} 21. a5 {[%emt 0:03:52]} Bf8 {[%emt 0:03:45]} 22. b4 {[%emt 0:02:37]} Rc8 {[%emt 0:01:56]} 23. Re3 {[%emt 0:02:01]} c5 {[%emt 0:03:06]} 24. Bb3 {[%emt 0:01:01]} c4 {[%emt 0:00:30]} 25. Bc2 {[%emt 0:00:17]} Be7 {[%emt 0:00:13]} 26. Ng1 {[%emt 0:05:51]} Ng6 {[%emt 0:02:01]} 27. Rf3 {[%emt 0:01:05]} Qg7 {[%emt 0:00:17]} 28. Qe2 {[%emt 0:00:27]} Bd8 {[%emt 0:01:06]} 29. Qd2 {[%emt 0:01:03]} Bc7 {[%emt 0:00:48]} 30. Ne2 {[%emt 0:00:31]} Nh4 {[%emt 0:01:09]} 31. Rg3 {[%emt 0:00:48]} Bb8 {[%emt 0:00:52]} 32. Ng1 {[%emt 0:00:37]} Qf6 {[%emt 0:01:53]} 33. Qe2 {[%emt 0:00:55]} Ba7 {[%emt 0:00:22]} 34. Nf3 {[%emt 0:00:30]} Ng6 {[%emt 0:00:25]} 35. Rf1 {[%emt 0:00:51]} Kg7 {[%emt 0:01:30]} 36. Qd2 {[%emt 0:00:26]} Rh8 {[%emt 0:00:38]} 37. Ne1 {[%emt 0:00:47]} Nh4 {[%emt 0:01:06]} 38. Bd1 {[%emt 0:00:49]} Rag8 {[%emt 0:01:19]} 39. Ng2 {[%emt 0:01:26]} Ng6 {[%emt 0:02:20]} 40. Rf3 {[%emt 0:00:00]} Qd8 {[%emt 0:00:00]} 41. Rg3 {[%emt 0:00:00]} Kf8 {[%emt 0:00:00]} 42. Qe2 {[%emt 0:00:00]} Ne7 {[%emt 0:00:00]} 43. Rh1 {[%emt 0:00:00]} Rg6 {[%emt 0:00:00]} 44. Kg1 {[%emt 0:00:00]} Rf6 {[%emt 0:00:00]} 45. Rf3 {[%emt 0:00:00]} Ng6 {[%emt 0:00:00]} 46. Rf5 {[%emt 0:00:00]} Rxf5 {[%emt 0:00:00]} 47. gxf5 {[%emt 0:00:00]} Nf4 {[%emt 0:00:00]} 48. Nxf4 {[%emt 0:00:00]} gxf4 {[%emt 0:00:00]} 49. Kf1 {[%emt 0:00:00]} Qh4 {[%emt 0:00:00]} 50. Qf3 {[%emt 0:00:00]} Rg8 {[%emt 0:00:00]} 51. Rh2 {[%emt 0:00:00]} Qg5 {[%emt 0:00:00]} 52. Rg2 {[%emt 0:00:00]} Qh4 {[%emt 0:00:00]} 53. Rxg8+ {[%emt 0:00:00]} Kxg8 {[%emt 0:00:00]} 54. Qg4+ {[%emt 0:00:08]} Qxg4 {[%emt 0:00:00]} 55. Bxg4 {[%emt 0:00:41]} f6 {[%emt 0:00:00]} 56. Bh5 {[%emt 0:00:31]} Kf8 {[%emt 0:00:00]} 57. Ke2 {[%emt 0:00:34]} Ke7 {[%emt 0:00:00]} 58. h4 {[%emt 0:00:43]} Bb8 {[%emt 0:00:00]} 59. Bg6 {[%emt 0:00:51]} Bc7 {[%emt 0:00:00]} 60. Kd2 {[%emt 0:00:33]} Bb8 {[%emt 0:00:15]} 61. Ke2 {[%emt 0:00:15]} Ba7 {[%emt 0:00:17]} 62. Bh5 {[%emt 0:00:17]} Kf8 {[%emt 0:00:17]} 63. Bg6 {[%emt 0:00:34]} Ke7 {[%emt 0:00:10]} 64. Bh5 {[%emt 0:00:11]} Kf8 {[%emt 0:00:04]} 1/2-1/2

[Event "CZE-ch U16 Girls 2020"]
[Site "Kouty nad Desnou"]
[Date "2020.03.07"]
[Round "1.3"]
[White "Leksova, Sona"]
[Black "Vsetulova, Viktorie"]
[Result "1/2-1/2"]
[ECO "B01"]
[WhiteElo "1645"]
[BlackElo "1334"]
[Annotator "NA RC"]
[PlyCount "104"]
[EventDate "2020.03.07"]
[EventCountry "CZE"]
[SourceTitle "playchess.com"]
[Source "ChessBase"]
[SourceQuality "1"]
[TimeControl "5400+30"]

1. e4 {[%emt 0:00:00]} d5 {[%emt 0:00:00]} 2. exd5 {[%emt 0:00:00]} Nf6 {[%emt 0:00:00]} 3. d4 {[%emt 0:02:24]} Nxd5 {[%emt 0:00:00]} 4. c4 {[%emt 0:00:59]} Nb6 {[%emt 0:00:00]} 5. Nc3 {[%emt 0:00:31]} g6 {[%emt 0:00:57]} 6. Nf3 {[%emt 0:02:29]} Bg7 {[%emt 0:00:26]} 7. h3 {[%emt 0:00:30]} O-O {[%emt 0:00:52]} 8. Be2 {[%emt 0:01:49]} Nc6 {[%emt 0:01:22]} 9. Be3 {[%emt 0:01:14]} e5 {[%emt 0:10:54]} 10. d5 {[%emt 0:04:52]} Ne7 {[%emt 0:01:52]} 11. O-O {[%emt 0:00:51]} Nf5 {[%emt 0:04:53]} 12. Bg5 {[%emt 0:03:04]} f6 {[%emt 0:02:52]} 13. Be3 {[%emt 0:02:56]} Qe7 {[%emt 0:05:34]} 14. Rb1 {[%emt 0:07:02]} Nxe3 {[%emt 0:02:57]} 15. fxe3 {[%emt 0:00:15]} Qc5 {[%emt 0:01:12]} 16. Qd2 {[%emt 0:15:39]} Nxc4 {[%emt 0:01:56]} 17. Bxc4 {[%emt 0:00:13]} Qxc4 {[%emt 0:00:08]} 18. e4 {[%emt 0:03:04]} Bd7 {[%emt 0:06:20]} 19. Rfc1 {[%emt 0:01:57]} Qc5+ {[%emt 0:04:02]} 20. Kh1 {[%emt 0:00:41]} Qb6 {[%emt 0:00:19]} 21. b4 {[%emt 0:01:30]} Rad8 {[%emt 0:04:01]} 22. a4 {[%emt 0:03:22]} Qd6 {[%emt 0:05:31]} 23. Qe3 {[%emt 0:04:44]} a6 {[%emt 0:02:13]} 24. b5 {[%emt 0:00:45]} axb5 {[%emt 0:01:41]} 25. Nxb5 {[%emt 0:01:56]} Bxb5 {[%emt 0:02:38]} 26. Rxb5 {[%emt 0:00:13]} b6 {[%emt 0:02:05]} 27. Rc6 {[%emt 0:00:28]} Qd7 {[%emt 0:02:10]} 28. Qc3 {[%emt 0:04:37]} Rc8 {[%emt 0:02:51]} 29. Qc4 {[%emt 0:04:28]} Kh8 {[%emt 0:02:47]} 30. a5 {[%emt 0:02:29]} bxa5 {[%emt 0:01:38]} 31. Rxa5 {[%emt 0:00:10]} Rf7 {[%emt 0:02:30]} 32. d6 {[%emt 0:03:05]} Bf8 {[%emt 0:02:29]} 33. Rd5 {[%emt 0:00:57]} Kg7 {[%emt 0:08:36]} 34. g4 {[%emt 0:05:53]} Kg8 {[%emt 0:03:21]} 35. Kg2 {[%emt 0:00:23]} Kg7 {[%emt 0:00:33]} 36. g5 {[%emt 0:01:00]} Qd8 {[%emt 0:04:07]} 37. dxc7 {[%emt 0:00:32]} Qe7 {[%emt 0:01:09]} 38. gxf6+ {[%emt 0:00:21]} Rxf6 {[%emt 0:00:11]} 39. Rxe5 {[%emt 0:03:02]} Qd7 {[%emt 0:02:35]} 40. Rxf6 {[%emt 0:00:00]} Kxf6 {[%emt 0:00:00]} 41. Rd5 {[%emt 0:00:00]} Qxc7 {[%emt 0:00:00]} 42. Qd4+ {[%emt 0:00:00]} Ke7 {[%emt 0:00:00]} 43. Qb4+ {[%emt 0:00:00]} Kf6 {[%emt 0:00:00]} 44. e5+ {[%emt 0:00:00]} Kg7 {[%emt 0:00:00]} 45. Qd4 {[%emt 0:00:00]} Kg8 {[%emt 0:00:00]} 46. Rd7 {[%emt 0:00:00]} Qc2+ {[%emt 0:00:00]} 47. Kg3 {[%emt 0:00:00]} Qc6 {[%emt 0:00:00]} 48. h4 {[%emt 0:00:00]} Qc5 {[%emt 0:00:00]} 49. Qf4 {[%emt 0:00:00]} Qc4 {[%emt 0:00:00]} 50. Qe3 {[%emt 0:00:00]} Qc5 {[%emt 0:00:00]} 51. Qg5 {[%emt 0:03:02]} Qc6 {[%emt 0:00:00]} 52. Rd4 {[%emt 0:01:56]} Qe6 {[%emt 0:00:00]} 1/2-1/2

[Event "CZE-ch U16 Girls 2020"]
[Site "Kouty nad Desnou"]
[Date "2020.03.07"]
[Round "1.4"]
[White "Vlachynska, Lilian"]
[Black "Gregurkova, Nikola"]
[Result "0-1"]
[ECO "B01"]
[WhiteElo "1224"]
[BlackElo "1642"]
[Annotator "NA RC"]
[PlyCount "102"]
[EventDate "2020.03.07"]
[EventCountry "CZE"]
[SourceTitle "playchess.com"]
[Source "ChessBase"]
[SourceQuality "1"]
[TimeControl "5400+30"]

1. e4 {[%emt 0:00:00]} d5 {[%emt 0:00:00]} 2. exd5 {[%emt 0:00:00]} Qxd5 {[%emt 0:00:00]} 3. Nc3 {[%emt 0:00:00]} Qa5 {[%emt 0:00:00]} 4. d4 {[%emt 0:00:00]} Nf6 {[%emt 0:00:21]} 5. Bd2 {[%emt 0:00:16]} Bg4 {[%emt 0:10:00]} 6. f3 {[%emt 0:12:39]} Bd7 {[%emt 0:07:05]} 7. Bc4 {[%emt 0:03:47]} Qb6 {[%emt 0:05:01]} 8. f4 {[%emt 0:13:34]} Qxd4 {[%emt 0:19:21]} 9. Qe2 {[%emt 0:00:42]} Bg4 {[%emt 0:11:26]} 10. Nf3 {[%emt 0:01:28]} Bxf3 {[%emt 0:01:48]} 11. gxf3 {[%emt 0:00:15]} Qd8 {[%emt 0:14:54]} 12. O-O-O {[%emt 0:00:22]} c6 {[%emt 0:03:12]} 13. Rhe1 {[%emt 0:12:14]} Nbd7 {[%emt 0:04:45]} 14. f5 {[%emt 0:10:55]} Qc7 {[%emt 0:04:32]} 15. h3 {[%emt 0:08:58]} h6 {[%emt 0:03:14]} 16. Qf2 {[%emt 0:03:41]} Nb6 {[%emt 0:04:05]} 17. Bb3 {[%emt 0:00:52]} Rd8 {[%emt 0:02:51]} 18. Ne4 {[%emt 0:06:16]} Nfd5 {[%emt 0:04:48]} 19. Nc3 {[%emt 0:04:56]} a6 {[%emt 0:00:52]} 20. Nxd5 {[%emt 0:00:36]} Nxd5 {[%emt 0:00:34]} 21. Kb1 {[%emt 0:07:04]} b5 {[%emt 0:00:45]} 22. Rh1 {[%emt 0:03:01]} a5 {[%emt 0:00:43]} 23. a3 {[%emt 0:00:24]} a4 {[%emt 0:00:31]} 24. Ba2 {[%emt 0:00:06]} Qb6 {[%emt 0:00:38]} 25. Qxb6 {[%emt 0:02:17]} Nxb6 {[%emt 0:00:04]} 26. Ba5 {[%emt 0:00:22]} Rxd1+ {[%emt 0:00:33]} 27. Rxd1 {[%emt 0:00:07]} Nd7 {[%emt 0:00:15]} 28. Bxf7+ {[%emt 0:00:47]} Kxf7 {[%emt 0:00:04]} 29. Rxd7 {[%emt 0:00:02]} h5 {[%emt 0:00:38]} 30. Bd2 {[%emt 0:00:38]} h4 {[%emt 0:00:57]} 31. Rc7 {[%emt 0:00:47]} Rh5 {[%emt 0:00:21]} 32. Rxc6 {[%emt 0:00:03]} Rxf5 {[%emt 0:00:08]} 33. Rc3 {[%emt 0:00:07]} g6 {[%emt 0:00:46]} 34. b3 {[%emt 0:02:27]} Rd5 {[%emt 0:01:12]} 35. Rd3 {[%emt 0:01:22]} Rxd3 {[%emt 0:00:22]} 36. cxd3 {[%emt 0:00:04]} e5 {[%emt 0:00:35]} 37. Kb2 {[%emt 0:00:35]} Bg7 {[%emt 0:00:31]} 38. Kc2 {[%emt 0:00:40]} Bf6 {[%emt 0:00:31]} 39. bxa4 {[%emt 0:00:44]} bxa4 {[%emt 0:00:11]} 40. Bc1 {[%emt 0:00:00]} Ke6 {[%emt 0:00:00]} 41. Kd2 {[%emt 0:00:00]} Bg5+ {[%emt 0:00:00]} 42. Kc2 {[%emt 0:00:00]} Bxc1 {[%emt 0:00:00]} 43. Kxc1 {[%emt 0:00:00]} Kf5 {[%emt 0:00:00]} 44. Kd2 {[%emt 0:00:00]} Kf4 {[%emt 0:00:00]} 45. Ke2 {[%emt 0:00:00]} Kg3 {[%emt 0:00:00]} 46. Ke3 {[%emt 0:00:00]} Kxh3 {[%emt 0:00:00]} 47. Kf2 {[%emt 0:00:00]} g5 {[%emt 0:00:00]} 48. f4 {[%emt 0:00:00]} exf4 {[%emt 0:00:00]} 49. d4 {[%emt 0:00:00]} Kg4 {[%emt 0:00:00]} 50. d5 {[%emt 0:00:00]} Kf5 {[%emt 0:00:00]} 51. Kf3 {[%emt 0:00:00]} g4+ {[%emt 0:00:00]} 0-1

[Event "CZE-ch U16 Girls 2020"]
[Site "Kouty nad Desnou"]
[Date "2020.03.07"]
[Round "1.5"]
[White "Vavrinkova, Anna"]
[Black "Zilava, Anezka"]
[Result "1-0"]
[ECO "C64"]
[WhiteElo "1622"]
[BlackElo "1224"]
[Annotator "NA RC"]
[PlyCount "107"]
[EventDate "2020.03.07"]
[EventCountry "CZE"]
[SourceTitle "playchess.com"]
[Source "ChessBase"]
[SourceQuality "1"]
[TimeControl "5400+30"]

1. e4 {[%emt 0:00:00]} e5 {[%emt 0:00:00]} 2. Nf3 {[%emt 0:00:00]} Nc6 {[%emt 0:00:00]} 3. Bb5 {[%emt 0:00:37]} Bc5 {[%emt 0:00:09]} 4. d3 {[%emt 0:01:42]} Nge7 {[%emt 0:00:36]} 5. c3 {[%emt 0:00:48]} a6 {[%emt 0:00:57]} 6. Ba4 {[%emt 0:01:20]} b5 {[%emt 0:04:48]} 7. Bb3 {[%emt 0:02:12]} d6 {[%emt 0:02:13]} 8. h3 {[%emt 0:01:30]} Be6 {[%emt 0:04:49]} 9. O-O {[%emt 0:05:30]} Bxb3 {[%emt 0:07:17]} 10. axb3 {[%emt 0:02:33]} O-O {[%emt 0:02:05]} 11. b4 {[%emt 0:05:33]} Bb6 {[%emt 0:00:33]} 12. Bg5 {[%emt 0:03:52]} Qd7 {[%emt 0:01:28]} 13. Nbd2 {[%emt 0:05:37]} h6 {[%emt 0:01:54]} 14. Bh4 {[%emt 0:00:54]} Kh8 {[%emt 0:01:36]} 15. Re1 {[%emt 0:04:26]} Ng6 {[%emt 0:01:04]} 16. Bg3 {[%emt 0:00:37]} f5 {[%emt 0:03:36]} 17. exf5 {[%emt 0:13:48]} Qxf5 {[%emt 0:00:57]} 18. Nf1 {[%emt 0:03:12]} Qf6 {[%emt 0:02:16]} 19. Ne3 {[%emt 0:03:15]} Bxe3 {[%emt 0:01:36]} 20. fxe3 {[%emt 0:00:57]} Qe6 {[%emt 0:01:22]} 21. Qc2 {[%emt 0:02:15]} Nce7 {[%emt 0:02:21]} 22. Qe2 {[%emt 0:03:27]} Nf5 {[%emt 0:01:18]} 23. Bh2 {[%emt 0:01:11]} Nfh4 {[%emt 0:01:23]} 24. Nxh4 {[%emt 0:03:39]} Nxh4 {[%emt 0:00:09]} 25. Rf1 {[%emt 0:00:27]} Ng6 {[%emt 0:02:56]} 26. Rxf8+ {[%emt 0:01:33]} Nxf8 {[%emt 0:00:26]} 27. Qf3 {[%emt 0:00:06]} Qc8 {[%emt 0:00:58]} 28. Qc6 {[%emt 0:06:36]} Ne6 {[%emt 0:02:53]} 29. Rf1 {[%emt 0:00:48]} Qe8 {[%emt 0:00:59]} 30. Qd5 {[%emt 0:05:40]} Rb8 {[%emt 0:04:06]} 31. Ra1 {[%emt 0:00:25]} Rb6 {[%emt 0:01:03]} 32. Bg3 {[%emt 0:01:55]} Qc8 {[%emt 0:01:32]} 33. Bf2 {[%emt 0:03:07]} c5 {[%emt 0:00:57]} 34. bxc5 {[%emt 0:01:33]} Nxc5 {[%emt 0:01:13]} 35. e4 {[%emt 0:00:35]} Qc6 {[%emt 0:04:10]} 36. Qf7 {[%emt 0:04:50]} Rb8 {[%emt 0:02:16]} 37. Qf3 {[%emt 0:02:19]} Nd7 {[%emt 0:03:14]} 38. Be3 {[%emt 0:03:42]} Rf8 {[%emt 0:02:09]} 39. Qg4 {[%emt 0:03:03]} Nf6 {[%emt 0:03:48]} 40. Qe6 {[%emt 0:00:00]} Re8 {[%emt 0:00:00]} 41. Qf7 {[%emt 0:00:00]} Ng8 {[%emt 0:00:00]} 42. Kh2 {[%emt 0:00:00]} Ra8 {[%emt 0:00:00]} 43. Qe6 {[%emt 0:00:00]} Qc7 {[%emt 0:00:00]} 44. Rf1 {[%emt 0:00:00]} Qe7 {[%emt 0:00:00]} 45. Qd5 {[%emt 0:00:00]} Rf8 {[%emt 0:00:00]} 46. Ra1 {[%emt 0:00:00]} Nf6 {[%emt 0:00:00]} 47. Qc6 {[%emt 0:00:00]} Nd7 {[%emt 0:00:00]} 48. Qxa6 {[%emt 0:00:00]} Rb8 {[%emt 0:00:00]} 49. Qc6 {[%emt 0:00:00]} b4 {[%emt 0:00:00]} 50. Ra7 {[%emt 0:00:00]} Rd8 {[%emt 0:00:00]} 51. Bb6 {[%emt 0:00:00]} Nb8 {[%emt 0:00:00]} 52. Rxe7 {[%emt 0:00:00]} Nxc6 {[%emt 0:00:00]} 53. Bxd8 {[%emt 0:00:00]} Nxe7 {[%emt 0:00:00]} 54. Bxe7 {[%emt 0:00:00]} 1-0

[Event "CZE-ch U16 Girls 2020"]
[Site "Kouty nad Desnou"]
[Date "2020.03.07"]
[Round "1.6"]
[White "Kuncicka, Klara"]
[Black "Strnadova, Monika"]
[Result "0-1"]
[ECO "B34"]
[WhiteElo "1223"]
[BlackElo "1514"]
[Annotator "NA RC"]
[PlyCount "81"]
[EventDate "2020.03.07"]
[EventCountry "CZE"]
[SourceTitle "playchess.com"]
[Source "ChessBase"]
[SourceQuality "1"]
[TimeControl "5400+30"]

1. e4 {[%emt 0:00:00]} c5 {[%emt 0:00:00]} 2. Nf3 {[%emt 0:00:00]} Nc6 {[%emt 0:00:00]} 3. d4 {[%emt 0:00:21]} cxd4 {[%emt 0:00:00]} 4. Nxd4 {[%emt 0:00:05]} g6 {[%emt 0:00:13]} 5. Nxc6 {[%emt 0:13:23]} bxc6 {[%emt 0:00:16]} 6. Nc3 {[%emt 0:00:21]} Bg7 {[%emt 0:01:03]} 7. Be2 {[%emt 0:06:41]} Nf6 {[%emt 0:01:25]} 8. O-O {[%emt 0:03:48]} O-O {[%emt 0:01:30]} 9. Kh1 {[%emt 0:07:13]} d5 {[%emt 0:06:04]} 10. exd5 {[%emt 0:10:18]} cxd5 {[%emt 0:00:32]} 11. Rb1 {[%emt 0:07:22]} Bf5 {[%emt 0:03:40]} 12. Bd3 {[%emt 0:06:32]} Bxd3 {[%emt 0:04:24]} 13. Qxd3 {[%emt 0:03:34]} e5 {[%emt 0:04:48]} 14. Bg5 {[%emt 0:01:15]} d4 {[%emt 0:06:44]} 15. Ne4 {[%emt 0:01:50]} Qb6 {[%emt 0:01:01]} 16. Bxf6 {[%emt 0:10:13]} Bxf6 {[%emt 0:00:07]} 17. Nxf6+ {[%emt 0:04:22]} Qxf6 {[%emt 0:00:09]} 18. Qe4 {[%emt 0:03:25]} Rfe8 {[%emt 0:02:14]} 19. f4 {[%emt 0:03:39]} exf4 {[%emt 0:05:05]} 20. Qxf4 {[%emt 0:04:47]} Qxf4 {[%emt 0:02:58]} 21. Rxf4 {[%emt 0:00:03]} Rac8 {[%emt 0:00:30]} 22. Rbf1 {[%emt 0:03:21]} Rxc2 {[%emt 0:03:51]} 23. Rxd4 {[%emt 0:04:48]} Rxb2 {[%emt 0:00:13]} 24. Rd7 {[%emt 0:03:57]} Rxa2 {[%emt 0:01:44]} 25. h3 {[%emt 0:00:26]} Rf8 {[%emt 0:05:07]} 26. Rc1 {[%emt 0:00:27]} a5 {[%emt 0:05:31]} 27. Ra7 {[%emt 0:00:06]} Kg7 {[%emt 0:02:37]} 28. Rf1 {[%emt 0:00:44]} a4 {[%emt 0:02:16]} 29. Re1 {[%emt 0:00:49]} Kh6 {[%emt 0:05:14]} 30. Rd1 {[%emt 0:00:26]} a3 {[%emt 0:06:03]} 31. Rf1 {[%emt 0:00:06]} f5 {[%emt 0:02:20]} 32. Re1 {[%emt 0:00:25]} Rd8 {[%emt 0:02:02]} 33. Ree7 {[%emt 0:00:57]} Rd1+ {[%emt 0:01:56]} 34. Kh2 {[%emt 0:00:04]} Rdd2 {[%emt 0:00:06]} 35. Kh1 {[%emt 0:00:02]} Rxg2 {[%emt 0:00:34]} 36. Rxh7+ {[%emt 0:00:42]} Kg5 {[%emt 0:00:14]} 37. h4+ {[%emt 0:01:05]} Kg4 {[%emt 0:00:57]} 38. Ra4+ {[%emt 0:00:47]} Kh3 {[%emt 0:00:21]} 39. Rxa3+ {[%emt 0:00:26]} Rxa3 {[%emt 0:00:13]} 40. Ra7 {[%emt 0:00:00]} Rxa7 {[%emt 0:00:00]} 41. h5 {[%emt 0:00:00]} 0-1

[Event "CZE-ch U16 Girls 2020"]
[Site "Kouty nad Desnou"]
[Date "2020.03.07"]
[Round "1.7"]
[White "Dudova, Pavlina"]
[Black "Saskova, Renata"]
[Result "1-0"]
[ECO "B85"]
[WhiteElo "1499"]
[BlackElo "1191"]
[Annotator "NA RC"]
[PlyCount "57"]
[EventDate "2020.03.07"]
[EventCountry "CZE"]
[SourceTitle "playchess.com"]
[Source "ChessBase"]
[SourceQuality "1"]
[TimeControl "5400+30"]

1. e4 {[%emt 0:00:00]} c5 {[%emt 0:00:00]} 2. Nf3 {[%emt 0:00:00]} d6 {[%emt 0:00:00]} 3. d4 {[%emt 0:00:00]} cxd4 {[%emt 0:00:03]} 4. Nxd4 {[%emt 0:00:05]} Nf6 {[%emt 0:00:20]} 5. Nc3 {[%emt 0:00:24]} e6 {[%emt 0:00:44]} 6. Be2 {[%emt 0:00:42]} Be7 {[%emt 0:00:15]} 7. Be3 {[%emt 0:00:29]} O-O {[%emt 0:00:23]} 8. O-O {[%emt 0:00:13]} a6 {[%emt 0:00:34]} 9. f4 {[%emt 0:04:07]} Nc6 {[%emt 0:05:39]} 10. Nb3 {[%emt 0:02:44]} b5 {[%emt 0:03:48]} 11. a3 {[%emt 0:01:18]} Bb7 {[%emt 0:04:02]} 12. Bf3 {[%emt 0:02:15]} Qc7 {[%emt 0:09:44]} 13. Qe2 {[%emt 0:04:56]} Rac8 {[%emt 0:08:33]} 14. Rad1 {[%emt 0:05:23]} e5 {[%emt 0:07:30]} 15. f5 {[%emt 0:09:35]} Rfd8 {[%emt 0:07:55]} 16. Qf2 {[%emt 0:09:32]} Rd7 {[%emt 0:01:28]} 17. Rd2 {[%emt 0:03:30]} Ba8 {[%emt 0:06:26]} 18. g4 {[%emt 0:13:27]} Bd8 {[%emt 0:07:51]} 19. g5 {[%emt 0:05:46]} Ne8 {[%emt 0:01:28]} 20. Nd5 {[%emt 0:02:41]} Qb7 {[%emt 0:04:00]} 21. f6 {[%emt 0:07:05]} gxf6 {[%emt 0:09:39]} 22. gxf6 {[%emt 0:00:20]} Nxf6 {[%emt 0:00:15]} 23. Qg3+ {[%emt 0:02:56]} Kf8 {[%emt 0:02:18]} 24. Bh6+ {[%emt 0:05:30]} Ke8 {[%emt 0:00:41]} 25. Nxf6+ {[%emt 0:01:02]} Bxf6 {[%emt 0:00:31]} 26. Bg4 {[%emt 0:01:41]} Bd8 {[%emt 0:05:53]} 27. Bxd7+ {[%emt 0:00:26]} Qxd7 {[%emt 0:00:19]} 28. Qg8+ {[%emt 0:00:13]} Ke7 {[%emt 0:00:31]} 29. Qxf7# {[%emt 0:00:08]} 1-0

[Event "CZE-ch U16 Girls 2020"]
[Site "Kouty nad Desnou"]
[Date "2020.03.07"]
[Round "1.8"]
[White "Merinska, Julie"]
[Black "Semova, Lada"]
[Result "0-1"]
[ECO "C44"]
[WhiteElo "1182"]
[BlackElo "1477"]
[Annotator "NA RC"]
[PlyCount "70"]
[EventDate "2020.03.07"]
[EventCountry "CZE"]
[SourceTitle "playchess.com"]
[Source "ChessBase"]
[SourceQuality "1"]
[TimeControl "5400+30"]

1. e4 {[%emt 0:00:00]} e5 {[%emt 0:00:00]} 2. d4 {[%emt 0:00:00]} exd4 {[%emt 0:00:00]} 3. Nf3 {[%emt 0:00:04]} Nc6 {[%emt 0:01:41]} 4. c3 {[%emt 0:00:25]} dxc3 {[%emt 0:00:42]} 5. Nxc3 {[%emt 0:00:29]} Bc5 {[%emt 0:01:14]} 6. Bc4 {[%emt 0:00:54]} d6 {[%emt 0:02:04]} 7. Qb3 {[%emt 0:03:57]} Qd7 {[%emt 0:01:48]} 8. Ng5 {[%emt 0:03:26]} Ne5 {[%emt 0:01:09]} 9. Bb5 {[%emt 0:02:51]} c6 {[%emt 0:00:21]} 10. Be2 {[%emt 0:01:37]} h6 {[%emt 0:02:46]} 11. Nf3 {[%emt 0:00:46]} Nxf3+ {[%emt 0:09:26]} 12. Bxf3 {[%emt 0:00:15]} Nf6 {[%emt 0:01:02]} 13. O-O {[%emt 0:00:51]} Qe7 {[%emt 0:02:16]} 14. Re1 {[%emt 0:02:25]} O-O {[%emt 0:09:36]} 15. Be3 {[%emt 0:02:48]} Bxe3 {[%emt 0:00:37]} 16. Rxe3 {[%emt 0:00:42]} Ng4 {[%emt 0:01:17]} 17. Re2 {[%emt 0:02:30]} Ne5 {[%emt 0:00:32]} 18. Re3 {[%emt 0:02:42]} Be6 {[%emt 0:03:43]} 19. Qc2 {[%emt 0:02:34]} Qg5 {[%emt 0:04:15]} 20. Be2 {[%emt 0:02:37]} f5 {[%emt 0:07:06]} 21. Rg3 {[%emt 0:05:13]} Qf4 {[%emt 0:08:56]} 22. Rd1 {[%emt 0:02:54]} fxe4 {[%emt 0:01:50]} 23. Qxe4 {[%emt 0:04:12]} Qxf2+ {[%emt 0:07:23]} 24. Kh1 {[%emt 0:00:17]} Rf4 {[%emt 0:00:08]} 25. Qe3 {[%emt 0:01:02]} Raf8 {[%emt 0:07:49]} 26. Qxf2 {[%emt 0:02:09]} Rxf2 {[%emt 0:00:10]} 27. Kg1 {[%emt 0:00:34]} Bc4 {[%emt 0:06:47]} 28. Bxc4+ {[%emt 0:03:03]} Nxc4 {[%emt 0:00:05]} 29. Ne4 {[%emt 0:02:51]} Rxb2 {[%emt 0:00:50]} 30. Nc3 {[%emt 0:01:08]} Rbf2 {[%emt 0:00:54]} 31. Rgd3 {[%emt 0:02:33]} d5 {[%emt 0:01:43]} 32. Rb1 {[%emt 0:01:59]} Nd2 {[%emt 0:00:51]} 33. h3 {[%emt 0:01:11]} Nxb1 {[%emt 0:00:12]} 34. Nxb1 {[%emt 0:00:52]} Rf1+ {[%emt 0:00:06]} 35. Kh2 {[%emt 0:00:19]} Rxb1 {[%emt 0:00:04]} 0-1